bitfinex/quotes_BTCUSD_20230114
["timestamp","ask_amount","ask_price","bid_price","bid_amount"]
[1673688642030,1.011464,20514.0,20512.0,0.00950804]
[1673688642249,0.79941869,20513.0,20512.0,0.00950804]
[1673688642749,0.79941869,20513.0,20512.0,8.04e-06]
[1673688643029,0.79941869,20513.0,20508.0,1.256e-05]
[1673688643030,1.15122498,20513.0,20508.0,1.256e-05]
[1673688643280,1.15122498,20513.0,20504.0,1.938e-05]
[1673688643281,0.59700169,20509.0,20504.0,1.938e-05]
[1673688643542,1.33884698,20508.0,20504.0,1.938e-05]
[1673688643796,0.56552998,20507.0,20504.0,1.938e-05]
[1673688644044,1.33888698,20506.0,20504.0,1.938e-05]
[1673688644300,0.6483875,20505.0,20504.0,1.938e-05]
[1673688644660,1.10140869,20505.0,20504.0,1.938e-05]
[1673688644764,0.136522,20505.0,20504.0,0.16683671]
[1673688645020,7.48119351,20511.0,20503.0,0.0125665]
[1673688645021,0.05678049,20510.0,20503.0,0.0125665]
[1673688645283,0.53453595,20509.0,20504.0,0.19072595]
[1673688645525,0.53453595,20509.0,20504.0,0.3358241]
[1673688645526,0.52754828,20507.0,20504.0,0.3358241]
[1673688645786,0.79941869,20506.0,20503.0,0.19441712]
[1673688646031,0.036522,20505.0,20503.0,0.19441712]
[1673688646283,0.04619794,20507.0,20504.0,0.148821]
[1673688646535,0.96490169,20505.0,20501.0,0.0196693]
[1673688646826,0.56552998,20504.0,20501.0,0.0196693]
[1673688647097,0.85122498,20503.0,20501.0,9.3e-06]
[1673688647308,0.66552998,20502.0,20501.0,9.3e-06]
[1673688647559,1.01450668,20502.0,20498.0,0.01899391]
[1673688647820,0.59700169,20499.0,20498.0,0.01899391]
[1673688648064,0.59700169,20499.0,20498.0,3.91e-06]
[1673688648065,0.68532998,20499.0,20498.0,3.91e-06]
[1673688648338,0.51372369,20499.0,20493.0,0.01945431]
[1673688648587,0.47720169,20497.0,20493.0,0.18443613]
[1673688648842,0.47720169,20495.0,20493.0,0.01926675]
[1673688649095,1.28736569,20494.0,20493.0,0.01926675]
[1673688649370,1.28736569,20494.0,20493.0,0.19769215]
[1673688649371,0.322217,20494.0,20493.0,0.19769215]
[1673688649607,0.845193,20494.0,20493.0,0.01926675]
[1673688649861,0.9707218,20494.0,20493.0,0.01926675]
[1673688650105,1.3903218,20494.0,20493.0,0.01926675]
[1673688650354,1.33851551,20494.0,20493.0,6.75e-06]
[1673688650627,0.78042478,20494.0,20493.0,6.75e-06]
[1673688650922,0.88042478,20494.0,20493.0,6.75e-06]
[1673688651129,0.1,20494.0,20493.0,0.1907327]
[1673688651369,0.487835,20502.0,20493.0,0.3932667]
[1673688651370,0.0453992,20501.0,20493.0,0.3932667]
[1673688651624,0.0453992,20501.0,20494.0,0.19072595]
[1673688651625,0.47720169,20501.0,20494.0,0.19072595]
[1673688651904,6e-05,20502.0,20496.0,0.487897]
[1673688652258,0.39625431,20509.0,20499.0,0.6]
[1673688652456,0.05385527,20513.0,20502.0,0.00018]
[1673688652712,0.05773946,20511.0,20505.0,0.6]
[1673688652964,0.487298,20522.0,20506.0,0.690022]
[1673688652965,0.05755364,20510.0,20506.0,0.690022]
[1673688653222,0.15,20523.0,20507.0,0.19072595]
[1673688653494,0.15,20523.0,20511.0,1.575061]
[1673688653495,0.47720169,20522.0,20511.0,1.575061]
[1673688653739,0.005,20529.0,20514.0,0.6]
[1673688653990,0.005,20529.0,20518.0,0.487365]
[1673688654235,0.005,20529.0,20519.0,0.19072595]
[1673688654236,0.04932799,20520.0,20519.0,0.19072595]
[1673688654529,0.05117309,20522.0,20519.0,0.39291795]
[1673688654784,0.4137647,20532.0,20520.0,0.19072595]
[1673688655022,0.0574513,20532.0,20521.0,1.23408822]
[1673688655269,0.35,20533.0,20523.0,0.607053]
[1673688655270,0.1,20531.0,20523.0,0.607053]
[1673688655539,0.00521881,20538.0,20527.0,0.6]
[1673688655866,0.00521881,20538.0,20528.0,0.49072595]
[1673688656103,0.00521881,20538.0,20530.0,0.6]
[1673688656354,0.00521881,20538.0,20531.0,0.19072595]
[1673688656602,0.52900798,20537.0,20532.0,0.38834695]
[1673688656860,0.04941856,20546.0,20533.0,0.19761]
[1673688657131,0.52900798,20545.0,20534.0,0.19072595]
[1673688657431,0.05180629,20546.0,20535.0,0.197577]
[1673688657620,0.15,20548.0,20535.0,0.197577]
[1673688657621,0.1,20548.0,20540.0,0.7191]
[1673688657886,0.1,20548.0,20542.0,0.486789]
[1673688658131,0.1,20548.0,20541.0,0.87506695]
[1673688658132,0.05148425,20548.0,20543.0,0.19072595]
[1673688658411,0.05180415,20547.0,20544.0,0.38819895]
[1673688658651,0.0001,20550.0,20545.0,0.19072595]
[1673688658884,0.0001,20550.0,20546.0,0.38817795]
[1673688659127,0.0001,20550.0,20547.0,0.19072595]
[1673688659429,0.0001,20550.0,20548.0,0.18072857]
[1673688659684,0.0001,20550.0,20548.0,0.19072595]
[1673688659978,0.05934404,20556.0,20549.0,0.180728]
[1673688660229,0.04644158,20556.0,20550.0,0.19072595]
[1673688660502,0.47720169,20552.0,20547.0,0.1]
[1673688660763,0.1196,20553.0,20543.0,0.1]
[1673688660764,0.11964078,20548.0,20543.0,0.1]
[1673688661030,0.68737898,20547.0,20543.0,0.1]
[1673688661327,0.68737898,20547.0,20534.0,0.6]
[1673688661328,0.47720169,20544.0,20534.0,0.6]
[1673688661574,0.47720169,20542.0,20534.0,0.6]
[1673688661826,1.63812298,20541.0,20534.0,0.6]
[1673688662084,0.47720169,20536.0,20534.0,0.6]
[1673688662369,0.85129198,20535.0,20534.0,0.30841775]
[1673688662699,0.85129198,20535.0,20520.0,4.0]
[1673688662700,2.03016718,20535.0,20520.0,4.0]
[1673688662872,2.03016718,20535.0,20529.0,0.19324314]
[1673688662873,0.47720169,20532.0,20529.0,0.19324314]
[1673688663126,0.79948569,20531.0,20521.0,0.59440987]
[1673688663376,0.05180629,20530.0,20524.0,0.48723]
[1673688663624,0.1,20540.0,20525.0,0.180996]
[1673688663625,0.3,20539.0,20525.0,0.180996]
[1673688663924,0.04,20538.0,20535.0,0.15780145]
[1673688664125,0.1,20540.0,20536.0,0.37161595]
[1673688664378,0.1,20540.0,20537.0,0.19072595]
[1673688664379,0.47720169,20540.0,20537.0,0.19072595]
[1673688664625,0.63676,20544.0,20530.0,0.974171]
[1673688664626,0.47720169,20539.0,20538.0,0.19072595]
[1673688664876,0.47720169,20539.0,20528.0,0.48713]
[1673688664877,0.79948569,20539.0,20529.0,0.4038291]
[1673688665123,0.47720169,20537.0,20530.0,0.19072595]
[1673688665378,0.05180629,20536.0,20531.0,0.19072595]
[1673688665632,0.49188003,20542.0,20531.0,0.19072595]
[1673688665633,0.00506503,20542.0,20532.0,0.85869095]
[1673688665886,0.00506503,20542.0,20534.0,0.1198]
[1673688665887,0.05687132,20542.0,20534.0,0.1198]
[1673688666171,0.05687132,20542.0,20536.0,0.97388]
[1673688666172,0.00506503,20542.0,20536.0,0.97388]
[1673688666434,0.00506503,20542.0,20537.0,0.67159195]
[1673688666658,0.11964078,20548.0,20538.0,1.16450595]
[1673688666906,0.48653383,20556.0,20538.0,1.16450595]
[1673688666907,0.05275182,20555.0,20541.0,0.1191]
[1673688667155,0.05275182,20555.0,20545.0,0.973462]
[1673688667156,0.1,20549.0,20545.0,0.973462]
[1673688667549,0.47720169,20555.0,20545.0,0.973462]
[1673688667550,0.05180629,20555.0,20546.0,0.67148395]
[1673688667967,5.383e-05,20556.0,20548.0,0.973308]
[1673688668215,5.383e-05,20556.0,20547.0,2.3997214]
[1673688668216,0.12207668,20554.0,20549.0,0.37144995]
[1673688668459,0.12207668,20554.0,20546.0,0.486691]
[1673688668460,0.1707728,20554.0,20550.0,0.19072595]
[1673688668710,0.04869612,20553.0,20550.0,0.19072595]
[1673688668952,0.04869612,20553.0,20546.0,0.1]
[1673688669197,0.85129198,20552.0,20546.0,0.1]
[1673688669444,0.85129198,20551.0,20549.0,0.1]
[1673688669696,0.47720169,20550.0,20549.0,0.1]
[1673688669953,0.84818181,20550.0,20546.0,0.29072595]
[1673688670205,0.09037729,20549.0,20546.0,0.1]
[1673688670457,0.05180629,20549.0,20542.0,0.1]
[1673688670714,0.05180629,20548.0,20547.0,0.20023492]
[1673688670966,0.85129198,20548.0,20542.0,0.1]
[1673688671278,0.56757898,20547.0,20544.0,0.18941612]
[1673688671538,0.04869612,20548.0,20547.0,0.15305724]
[1673688671769,0.1,20547.0,20541.0,0.88780442]
[1673688672060,0.52900798,20546.0,20540.0,0.986838]
[1673688672328,0.05180629,20545.0,20537.0,0.586904]
[1673688672626,0.05180629,20545.0,20522.0,0.01791725]
[1673688672627,1.15125863,20534.0,20522.0,0.01791725]
[1673688672886,1.15125863,20534.0,20511.0,0.34418422]
[1673688672887,0.03295275,20519.0,20518.0,0.17445419]
[1673688673135,0.03295275,20519.0,20502.0,0.14449573]
[1673688673136,0.07152375,20519.0,20516.0,0.17771284]
[1673688673409,0.322284,20518.0,20513.0,0.19600039]
[1673688673655,0.47720169,20516.0,20511.0,0.16031879]
[1673688673945,0.56757898,20515.0,20503.0,0.43062229]
[1673688674206,0.05180629,20514.0,20504.0,0.31513958]
[1673688674451,0.05180629,20513.0,20505.0,0.181234]
[1673688674703,0.03354911,20512.0,20505.0,0.0325584]
[1673688674966,0.03354911,20512.0,20502.0,0.00018]
[1673688675247,0.03354911,20512.0,20503.0,0.18721823]
[1673688675248,0.322284,20511.0,20503.0,0.18721823]
[1673688675535,0.322284,20511.0,20502.0,0.17772237]
[1673688675536,1.19861811,20510.0,20502.0,0.17772237]
[1673688675801,0.5493218,20509.0,20502.0,0.19090595]
[1673688676043,0.29523805,20510.0,20503.0,0.19072595]
[1673688676044,0.15,20510.0,20503.0,0.19072595]
[1673688676312,0.03354911,20510.0,20504.0,0.39106755]
[1673688676564,0.03354911,20510.0,20505.0,0.19072595]
[1673688676860,0.15,20517.0,20506.0,0.84915764]
[1673688677111,0.35,20518.0,20508.0,0.487611]
[1673688677368,0.35,20518.0,20510.0,0.7865]
[1673688677616,0.03295275,20519.0,20511.0,0.97824995]
[1673688677884,0.06650186,20519.0,20512.0,0.51742811]
[1673688678442,0.06650186,20519.0,20513.0,0.19072595]
[1673688678444,0.06650186,20519.0,20513.0,0.17734915]
[1673688678695,0.04729997,20519.0,20514.0,0.37186095]
[1673688678949,0.04729997,20518.0,20513.0,0.19844854]
[1673688679198,0.322284,20517.0,20513.0,0.16596484]
[1673688679450,0.69996603,20518.0,20507.0,0.1]
[1673688679451,0.08587097,20516.0,20507.0,0.1]
[1673688679698,0.08587097,20516.0,20509.0,0.174559]
[1673688679699,0.84678566,20515.0,20509.0,0.174559]
[1673688679948,0.47720169,20513.0,20507.0,0.1]
[1673688680204,0.47720169,20513.0,20506.0,0.68762353]
[1673688680205,0.47720169,20510.0,20506.0,0.5]
[1673688680458,1.82197566,20509.0,20506.0,0.5]
[1673688680698,0.56307266,20508.0,20506.0,0.17307052]
[1673688680953,1.02803675,20507.0,20502.0,0.00018]
[1673688681194,0.47720169,20505.0,20502.0,0.00018]
[1673688681471,0.58555231,20507.0,20502.0,0.00018]
[1673688681472,0.322284,20504.0,20502.0,0.00018]
[1673688681755,0.1,20507.0,20502.0,0.00018]
[1673688681994,0.487644,20507.0,20495.0,0.4067686]
[1673688682225,0.487644,20507.0,20498.0,0.19072595]
[1673688682226,0.46958397,20506.0,20498.0,0.19072595]
[1673688682490,0.52450166,20505.0,20498.0,0.19047968]
[1673688682736,0.52450166,20505.0,20498.0,0.16342325]
[1673688682737,0.84678566,20504.0,20498.0,0.16342325]
[1673688682997,1.53857666,20503.0,20498.0,0.38485539]
[1673688683347,0.51382201,20502.0,20499.0,0.1705878]
[1673688683490,0.322284,20502.0,20499.0,0.1705878]
[1673688683736,0.487644,20507.0,20499.0,0.19072595]
[1673688683993,0.487644,20507.0,20497.0,0.01924079]
[1673688683994,0.52450166,20506.0,20500.0,0.37202795]
[1673688684257,0.15,20510.0,20501.0,0.19072595]
[1673688684509,0.16984574,20514.0,20502.0,0.37200295]
[1673688684754,0.16984574,20514.0,20507.0,0.19072595]
[1673688684755,0.1,20513.0,20507.0,0.19072595]
[1673688685008,0.16984574,20514.0,20508.0,0.37193495]
[1673688685258,0.487405,20517.0,20509.0,0.19072595]
[1673688685259,0.15424006,20513.0,20509.0,0.19072595]
[1673688685526,0.17475496,20510.0,20509.0,0.19072595]
[1673688685790,0.39151633,20518.0,20509.0,0.19072595]
[1673688686019,1.13570979,20518.0,20510.0,0.27108768]
[1673688686276,0.19620234,20521.0,20511.0,0.49072595]
[1673688686523,0.1909055,20520.0,20512.0,0.37189395]
[1673688686770,0.19027154,20519.0,20513.0,0.37186895]
[1673688687018,0.65587787,20518.0,20514.0,0.19072595]
[1673688687266,0.00455547,20521.0,20514.0,0.19072595]
[1673688687536,0.00455547,20521.0,20515.0,0.181124]
[1673688687537,0.1429137,20520.0,20515.0,0.181124]
[1673688687785,0.487206,20526.0,20515.0,0.181124]
[1673688687786,0.487162,20528.0,20516.0,0.57720169]
[1673688688055,0.35,20531.0,20518.0,0.19072595]
[1673688688056,0.5376082,20527.0,20518.0,0.19072595]
[1673688688313,0.5376082,20527.0,20516.0,0.1]
[1673688688314,0.06040651,20526.0,20519.0,0.19072595]
[1673688688562,0.47720169,20527.0,20519.0,0.20979855]
[1673688688808,0.487097,20530.0,20520.0,0.1]
[1673688689070,0.487054,20532.0,20521.0,0.181053]
[1673688689071,0.16566051,20529.0,20521.0,0.181053]
[1673688689338,0.16566051,20529.0,20522.0,0.37176295]
[1673688689625,0.00455547,20525.0,20523.0,0.19072595]
[1673688689825,0.00455547,20525.0,20524.0,0.181017]
[1673688690321,0.00455547,20525.0,20520.0,0.1]
[1673688690599,0.06040651,20524.0,20518.0,0.487373]
[1673688690898,0.06040651,20523.0,20519.0,0.36293557]
[1673688691098,0.06040651,20523.0,20519.0,0.66920257]
[1673688691360,0.00455547,20525.0,20520.0,0.181066]
[1673688691603,0.00455547,20525.0,20521.0,0.1]
[1673688691604,0.06496198,20525.0,20521.0,0.1]
[1673688691857,0.00455547,20525.0,20522.0,0.181043]
[1673688692107,0.00455547,20525.0,20516.0,0.1]
[1673688692356,0.8598922,20524.0,20512.0,3.487504]
[1673688692612,0.9829478,20523.0,20512.0,0.487504]
[1673688692871,0.9829478,20523.0,20510.0,0.24307801]
[1673688692872,2.5412368,20522.0,20510.0,0.24307801]
[1673688693153,0.47720169,20516.0,20510.0,0.08036173]
[1673688693429,2.1914426,20515.0,20510.0,0.08036173]
[1673688693657,1.2829478,20514.0,20510.0,0.08036173]
[1673688693907,2.2416608,20513.0,20510.0,0.08036173]
[1673688694212,0.02316,20511.0,20510.0,0.08036173]
[1673688694466,0.02316,20511.0,20497.0,0.50709579]
[1673688694467,2.26367964,20511.0,20501.0,0.17568463]
[1673688694734,2.26367964,20511.0,20497.0,0.01924079]
[1673688694735,1.28172064,20510.0,20502.0,0.19072595]
[1673688694981,1.28172064,20510.0,20497.0,0.50710179]
[1673688694982,1.17029451,20509.0,20497.0,0.01924079]
[1673688695242,1.17029451,20509.0,20499.0,0.1]
[1673688695243,0.62971723,20508.0,20499.0,0.1]
[1673688695499,0.72782544,20507.0,20499.0,0.1]
[1673688695767,0.72782544,20507.0,20497.0,0.01924079]
[1673688695768,0.02316,20502.0,20497.0,0.01924079]
[1673688696055,0.02316,20502.0,20497.0,0.20996674]
[1673688696056,0.322284,20501.0,20497.0,0.20996674]
[1673688696269,0.06040651,20501.0,20497.0,0.01924079]
[1673688696527,0.06040651,20500.0,20498.0,0.18096158]
[1673688696780,0.06040651,20500.0,20499.0,0.181314]
[1673688697045,0.06040651,20500.0,20497.0,0.01924079]
[1673688697046,0.587712,20504.0,20497.0,0.01924079]
[1673688697288,0.97552,20502.0,20497.0,0.20996674]
[1673688697520,1.1598922,20501.0,20497.0,0.01924079]
[1673688697762,0.68678651,20500.0,20497.0,0.01924079]
[1673688698007,0.1,20498.0,20494.0,0.01791725]
[1673688698257,0.038571,20497.0,20494.0,0.16336111]
[1673688698507,0.16040651,20498.0,20494.0,0.01791725]
[1673688698508,0.51027288,20496.0,20494.0,0.01791725]
[1673688698753,0.038571,20495.0,20494.0,0.01791725]
[1673688699001,0.18798888,20496.0,20494.0,0.20540241]
[1673688699257,0.14157887,20497.0,20495.0,0.15189901]
[1673688699516,0.56820834,20500.0,20494.0,0.01791725]
[1673688699517,0.17279571,20496.0,20494.0,0.01791725]
[1673688699753,0.322284,20495.0,20494.0,0.01791725]
[1673688700503,0.15352311,20498.0,20494.0,0.01791725]
[1673688700769,0.487831,20499.0,20495.0,0.18323401]
[1673688701030,0.17212538,20504.0,20496.0,0.19072595]
[1673688701283,0.487699,20505.0,20497.0,0.37206995]
[1673688701284,0.17829348,20503.0,20497.0,0.37206995]
[1673688701528,0.17829348,20503.0,20498.0,0.19072595]
[1673688701792,0.17829348,20503.0,20497.0,0.03720699]
[1673688701793,0.16556407,20504.0,20499.0,0.37203795]
[1673688702035,0.16556407,20504.0,20500.0,0.19072595]
[1673688702351,0.1,20508.0,20501.0,0.19072595]
[1673688702352,0.487682,20506.0,20501.0,0.19072595]
[1673688702544,0.1720118,20505.0,20502.0,0.19072595]
[1673688702791,1.06481869,20508.0,20502.0,0.19072595]
[1673688702792,0.19134125,20504.0,20502.0,0.19072595]
[1673688703034,0.17362637,20505.0,20497.0,0.58786]
[1673688703307,0.06040651,20504.0,20498.0,0.33885429]
[1673688703536,0.16132496,20509.0,20499.0,1.82485464]
[1673688703787,0.06040651,20509.0,20500.0,1.17346908]
[1673688704034,0.17615397,20507.0,20501.0,0.37200995]
[1673688704281,0.19494577,20505.0,20501.0,0.19072595]
[1673688704576,0.14817906,20506.0,20502.0,0.181275]
[1673688704834,0.18581048,20505.0,20500.0,0.587788]
[1673688705064,0.06040651,20504.0,20497.0,0.17190723]
[1673688705322,0.5376082,20503.0,20495.0,0.487913]
[1673688705568,0.1,20501.0,20494.0,0.01791725]
[1673688705822,0.1,20501.0,20495.0,0.173369]
[1673688705823,0.06040651,20500.0,20495.0,0.173369]
[1673688706123,0.96499769,20501.0,20494.0,0.01791725]
[1673688706124,0.06040651,20499.0,20494.0,0.01791725]
[1673688706335,0.02316,20496.0,20494.0,0.01791725]
[1673688706595,0.8598922,20495.0,20494.0,0.01791725]
[1673688706844,0.87061351,20495.0,20494.0,0.01791725]
[1673688707105,1.3709752,20495.0,20494.0,7.25e-06]
[1673688707340,1.71967132,20495.0,20489.0,0.01960066]
[1673688707601,1.71967132,20495.0,20481.0,0.019522]
[1673688707602,0.50036169,20490.0,20486.0,0.00402048]
[1673688707852,0.38269051,20489.0,20481.0,0.00794098]
[1673688708099,6e-05,20492.0,20483.0,0.488208]
[1673688708100,0.06040651,20488.0,20483.0,0.488208]
[1673688708372,0.08356651,20487.0,20481.0,0.00794098]
[1673688708684,0.9598922,20486.0,20478.0,0.19315318]
[1673688708857,0.5376082,20485.0,20479.0,0.15698081]
[1673688709121,0.38269051,20484.0,20479.0,0.1487841]
[1673688709371,0.09897751,20483.0,20477.0,0.17140408]
[1673688709618,0.588201,20486.0,20477.0,0.18854449]
[1673688709619,0.06040651,20482.0,20477.0,0.18854449]
[1673688709873,0.06040651,20481.0,20477.0,0.01714041]
[1673688710116,0.06040651,20481.0,20478.0,0.181554]
[1673688710382,0.17683574,20486.0,20482.0,0.14786946]
[1673688710383,0.17486918,20486.0,20482.0,0.14786946]
[1673688710637,0.17486918,20486.0,20483.0,0.37223795]
[1673688710901,0.17486918,20486.0,20484.0,0.37221695]
[1673688710902,6e-05,20486.0,20484.0,0.37221695]
[1673688711135,6e-05,20486.0,20485.0,0.19072595]
[1673688711389,6e-05,20486.0,20485.0,0.18148]
[1673688711635,6e-05,20486.0,20485.0,0.37220595]
[1673688711878,6e-05,20486.0,20485.0,0.18148]
[1673688712382,6e-05,20486.0,20485.0,0.28148]
[1673688712887,6e-05,20486.0,20485.0,0.319628]
[1673688713134,6e-05,20492.0,20486.0,6e-05]
[1673688713393,6e-05,20492.0,20488.0,0.1]
[1673688713634,6e-05,20492.0,20489.0,0.37215795]
[1673688713887,6e-05,20492.0,20489.0,0.1577431]
[1673688714131,6e-05,20492.0,20486.0,6e-05]
[1673688714132,0.06546651,20492.0,20486.0,6e-05]
[1673688714388,0.06540651,20491.0,20487.0,0.15022554]
[1673688714649,0.322284,20490.0,20487.0,0.15022554]
[1673688714930,0.038571,20489.0,20487.0,0.15022554]
[1673688715140,0.322284,20488.0,20487.0,0.15022554]
[1673688715388,0.1,20491.0,20486.0,6e-05]
[1673688715651,0.15006,20492.0,20489.0,0.19464261]
[1673688715917,6e-05,20492.0,20489.0,0.19464261]
[1673688716175,6e-05,20492.0,20486.0,6e-05]
[1673688716176,0.322284,20491.0,20486.0,6e-05]
[1673688716412,0.3,20490.0,20486.0,6e-05]
[1673688716659,0.038571,20489.0,20486.0,6e-05]
[1673688716906,1.77566569,20488.0,20486.0,6e-05]
[1673688717162,0.8811792,20487.0,20486.0,6e-05]
[1673688717420,1.4811792,20487.0,20480.0,0.1420397]
[1673688717668,0.02316,20484.0,20480.0,0.1420397]
[1673688717911,1.5576072,20483.0,20478.0,0.02008828]
[1673688718172,1.1880522,20482.0,20478.0,0.02008828]
[1673688718440,1.1880522,20482.0,20475.0,0.019528]
[1673688718441,0.68596169,20479.0,20475.0,0.019528]
[1673688718702,0.68596169,20479.0,20468.0,0.18952824]
[1673688718703,0.47720169,20476.0,20468.0,0.18952824]
[1673688718926,0.75628668,20478.0,20460.0,0.012]
[1673688718927,0.51577269,20475.0,20460.0,0.012]
[1673688719179,0.322284,20474.0,20467.0,0.00214972]
[1673688719417,0.038571,20473.0,20467.0,0.00214972]
[1673688719672,0.8447762,20472.0,20467.0,0.00214972]
[1673688719945,0.53858057,20473.0,20468.0,0.16742374]
[1673688719946,0.5811792,20471.0,20468.0,0.16742374]
[1673688720179,0.5811792,20471.0,20468.0,0.15140369]
[1673688720180,0.302168,20470.0,20468.0,0.15140369]
[1673688720424,0.12316,20473.0,20468.0,0.15140369]
[1673688720425,0.038571,20469.0,20468.0,0.15140369]
[1673688720686,0.138571,20469.0,20467.0,0.00214972]
[1673688720946,7.63119351,20474.0,20467.0,0.25975567]
[1673688720947,0.302168,20468.0,20467.0,0.25975567]
[1673688721278,0.35,20474.0,20467.0,0.22988229]
[1673688721487,0.17421357,20476.0,20468.0,0.29072595]
[1673688721488,0.17961272,20476.0,20468.0,0.29072595]
[1673688721735,0.15,20481.0,20469.0,0.86965764]
[1673688721986,0.35,20483.0,20471.0,0.6]
[1673688722266,0.19127344,20482.0,20474.0,0.97682]
[1673688722512,0.19127344,20482.0,20475.0,0.49237795]
[1673688722762,0.14509348,20484.0,20477.0,0.9767]
[1673688723008,7.815e-05,20485.0,20478.0,1.0340074]
[1673688723280,8.15e-06,20485.0,20480.0,0.47720169]
[1673688723559,0.01793,20497.0,20480.0,0.47720169]
[1673688723560,0.39738701,20500.0,20483.0,0.47720169]
[1673688723842,0.39738701,20500.0,20484.0,0.89443404]
[1673688723843,0.01793,20497.0,20484.0,0.89443404]
[1673688724050,0.08333651,20499.0,20485.0,0.60777604]
[1673688724304,0.08333651,20499.0,20484.0,0.488171]
[1673688724305,0.23276305,20499.0,20489.0,0.976124]
[1673688724573,0.17632634,20501.0,20490.0,0.86938864]
[1673688724812,0.02316,20505.0,20493.0,0.975928]
[1673688724813,0.14441901,20505.0,20493.0,0.975928]
[1673688725076,0.14441901,20505.0,20494.0,0.39213695]
[1673688725077,0.06540651,20505.0,20494.0,0.39213695]
[1673688725352,0.1,20510.0,20496.0,0.1]
[1673688725612,0.15,20511.0,20497.0,0.39537377]
[1673688725859,0.4105002,20512.0,20498.0,0.201351]
[1673688725860,0.18558795,20508.0,20498.0,0.201351]
[1673688726129,0.00423716,20512.0,20499.0,0.66792764]
[1673688726381,0.00423716,20512.0,20501.0,0.81769486]
[1673688726382,0.22331094,20511.0,20501.0,0.81769486]
[1673688726627,0.22331094,20511.0,20502.0,0.19072595]
[1673688726628,0.06540651,20510.0,20502.0,0.19072595]
[1673688726884,0.06540651,20510.0,20503.0,0.201292]
[1673688727131,0.06540651,20510.0,20504.0,0.19072595]
[1673688727417,0.00423716,20512.0,20505.0,0.49199695]
[1673688727627,0.5426082,20511.0,20505.0,0.19072595]
[1673688727902,0.5426082,20511.0,20504.0,0.00096509]
[1673688727903,0.8650722,20510.0,20504.0,0.00096509]
[1673688728168,0.8650722,20510.0,20496.0,0.587882]
[1673688728169,0.00397694,20504.0,20500.0,0.17349076]
[1673688728430,0.00397694,20504.0,20501.0,0.1]
[1673688729030,0.00397694,20504.0,20502.0,0.67851469]
[1673688729031,0.00138551,20504.0,20502.0,0.67851469]
[1673688729385,0.00138551,20504.0,20501.0,0.77850095]
[1673688729386,5.51e-06,20504.0,20503.0,0.2013]
[1673688729629,5.51e-06,20504.0,20498.0,0.00098834]
[1673688729630,0.06541202,20504.0,20498.0,0.00098834]
[1673688729880,0.06540651,20503.0,20498.0,0.47819003]
[1673688730129,0.06540651,20502.0,20499.0,0.689162]
[1673688730399,5.51e-06,20504.0,20498.0,0.00098834]
[1673688730400,0.06540651,20501.0,20498.0,0.00098834]
[1673688730685,5.51e-06,20504.0,20498.0,0.00098834]
[1673688730686,0.38787051,20500.0,20498.0,0.00098834]
[1673688730938,5.51e-06,20504.0,20491.0,5.487997]
[1673688730939,0.5426082,20499.0,20491.0,5.0]
[1673688731219,0.00654065,20501.0,20494.0,0.00096363]
[1673688731220,0.5426082,20498.0,20494.0,0.00096363]
[1673688731467,0.8650722,20497.0,20486.0,0.40570578]
[1673688731702,0.8650722,20497.0,20481.0,0.16383373]
[1673688731703,0.487954,20494.0,20491.0,0.00097396]
[1673688731947,0.487954,20494.0,20483.0,0.1]
[1673688731948,0.8650722,20493.0,20483.0,0.14770598]
[1673688732198,0.976084,20490.0,20483.0,0.14868454]
[1673688732457,0.5426082,20489.0,20484.0,0.18578048]
[1673688732708,0.5426082,20489.0,20483.0,0.00097856]
[1673688732709,1.3531712,20488.0,20483.0,0.00097856]
[1673688732955,0.018275,20487.0,20486.0,0.15923074]
[1673688733220,0.1,20489.0,20488.0,0.17367852]
[1673688733477,0.488028,20491.0,20489.0,0.14989226]
[1673688733744,0.15,20493.0,20489.0,0.33814153]
[1673688734042,0.79966569,20492.0,20482.0,0.00098012]
[1673688734232,0.79966569,20492.0,20482.0,0.16607214]
[1673688734233,0.6608832,20491.0,20482.0,0.16607214]
[1673688734491,0.976155,20489.0,20484.0,0.18397619]
[1673688734730,0.976155,20489.0,20482.0,0.19170607]
[1673688734731,0.318275,20488.0,20482.0,0.35605542]
[1673688735001,0.02316,20485.0,20482.0,0.16532947]
[1673688735223,1.0490682,20484.0,20482.0,0.00098012]
[1673688735512,1.0490682,20484.0,20482.0,1.2e-07]
[1673688735513,0.8600722,20483.0,20482.0,1.2e-07]
[1673688735736,1.34603022,20483.0,20469.0,1.60914308]
[1673688735987,0.5558832,20482.0,20475.0,0.17824568]
[1673688736237,0.5558832,20482.0,20476.0,0.16018195]
[1673688736238,1.2600722,20481.0,20476.0,0.16018195]
[1673688736547,0.18731305,20480.0,20477.0,0.19944863]
[1673688736751,0.14203922,20484.0,20478.0,0.03901746]
[1673688737008,0.19088641,20484.0,20479.0,0.19072595]
[1673688737268,0.488105,20488.0,20480.0,0.19072595]
[1673688737269,0.48809,20488.0,20480.0,0.19072595]
[1673688737546,0.48809,20488.0,20474.0,0.40570578]
[1673688737547,0.1856,20482.0,20474.0,3.0]
[1673688737776,0.1856,20482.0,20472.0,4.0]
[1673688737777,0.47720169,20477.0,20472.0,4.0]
[1673688738028,0.51318995,20476.0,20472.0,0.4]
[1673688738285,0.22420446,20478.0,20473.0,0.1]
[1673688738539,0.22420446,20478.0,20472.0,0.00096161]
[1673688738822,0.22420446,20478.0,20475.0,0.47720169]
[1673688739081,0.2214875,20478.0,20476.0,0.67884969]
[1673688739290,0.2214875,20478.0,20477.0,0.47720169]
[1673688739543,0.59103752,20490.0,20478.0,0.1]
[1673688739795,0.00455096,20490.0,20479.0,0.12703765]
[1673688740049,0.00455096,20490.0,20480.0,0.3917051]
[1673688740341,0.17899299,20486.0,20481.0,1.59176665]
[1673688740553,0.19072595,20485.0,20482.0,0.20156]
[1673688740801,0.00455096,20485.0,20481.0,0.61528065]
[1673688741054,9.6e-07,20485.0,20482.0,0.81681165]
[1673688741324,0.00455096,20490.0,20483.0,0.70770715]
[1673688741582,0.737916,20500.0,20484.0,0.201543]
[1673688741827,0.737916,20500.0,20486.0,0.12703765]
[1673688741828,0.17683378,20499.0,20486.0,0.12703765]
[1673688742063,0.0001,20500.0,20489.0,1.07609]
[1673688742324,0.19082595,20500.0,20490.0,0.60423934]
[1673688742600,0.18816696,20492.0,20491.0,0.12703765]
[1673688742849,0.37742893,20492.0,20489.0,0.488045]
[1673688743086,0.0001,20500.0,20490.0,0.201462]
[1673688743087,0.19072595,20491.0,20490.0,0.201462]
[1673688743346,0.17407219,20489.0,20484.0,0.27427771]